Workbook

Sheet CONTÁBIL- FINANCEIRA
D1: GOVERNO DO ESTADO DE PERNAMBUCO | F1: Janeiro/2020 - Versão 4.0
D2: SECRETARIA DE SAÚDE DO ESTADO DE PERNAMBUCO | F2: MÊS/ANO COMPETÊNCIA | G2: ANO CONTRATO
D3: SECRETARIA EXECUTIVA DE ATENÇÃO À SAÚDE
D4: DIR. GERAL DE MODERNIZAÇÃO E MONITORAMENTO DA ASSISTÊNCIA À SAÚDE | F4: FEVEREIRO 2021 | G4: 1 | BB4: Vínculos
D5: DEMONSTRATIVO DE RESULTADO CONTÁBIL - FINANCEIRO MENSAL | BB5: Pessoal
C6: UNIDADE (acessar lista suspensa) | E6: RESPONSÁVEL PELA UNIDADE | F6: ISENTO PIS: | G6: SIM
C7: HOSPITAL PROVISÓRIO RECIFE II/ UNIDADE - COELHOS | E7: FERNANDO FIGUEIRA | F7: CNPJ | G7: =IFERROR(VLOOKUP($C$7,'[1]DADOS (OCULTAR)'!$P$3:$R$54,3,0),"") -> 9039744000194
C8: =IFERROR(VLOOKUP($C$7,'[1]DADOS (OCULTAR)'!$P$3:$R$54,2,0),"") -> IMIP HOSPITALAR - FUNDAÇÃO PROF. MARTINIANO FERNANDES | D8: =IFERROR(VLOOKUP($C$7,'[1]DADOS (OCULTAR)'!$P$3:$R$53,3,0),"") ->  | E8: =IFERROR(VLOOKUP($C$7,'[1]DADOS (OCULTAR)'!$P$3:$R$53,3,0),"") ->  | F8: OSS - GESTORA
C9: DESCRIÇÃO | F9: Data Início CG | G9: =IFERROR(VLOOKUP(C7,'[1]DADOS (OCULTAR)'!P3:S53,4,0),"") -> 
C10: RECEITAS OPERACIONAIS | F10: VALOR
C11: Repasse Contrato de Gestão (Fixo+Variável) | F11: 0 | H11: Informação retirada do CG ou TA.
C12: Repasse Contrato de Gestão (Odontologia) | F12: 0 | H12: Informação retirada do CG ou TA.
C13: Repasse Contrato de Gestão ENSINO E PESQUISA | F13: 0 | H13: Informação retirada do CG ou TA.
C14: Plano de Investimento Autorizado pela SES | F14: 0
C15: Repasse Programas Especiais | F15: 0
C16: ( - ) Desconto | F16: 0
C17: TOTAL DE REPASSES | F17: =SUM(F11:G15)-F16 -> 0
C18: Rendimento de Aplicações Financeiras | F18: 3724.4
C19: Rendimento de Aplicações Financeiras do Recurso de Plano de Investimento Autorizado pela SES | F19: 0
C20: Reembolso de Despesas | F20: 0
C21: Obtenção de Recursos Externos a SES | F21: 0
C22: Demais Receitas (Convênios) | F22: 0
C23: Outras Receitas | F23: =SUM('[1]TCE - ANEXO VI - DR - Enviar'!G2:G9)-F18 -> 0
C24: TOTAL OUTRAS RECEITAS | F24: =SUM(F18:G23) -> 3724.4
C25: TOTAL DE REPASSES/RECEITAS | F25: =F24+F17 -> 3724.4
C27: DESPESAS OPERACIONAIS | F27: VALOR
C28: 1. Pessoal | F28: =F29+SUM(F35:F38) -> 0
C29: 1.1. Ordenados (Não inclui férias, 13º e Rescisão) | F29: =F30+F33+F34 -> 0
C30: 1.1.1. Assistência Médica | F30: =F31+F32 -> 0
A31: 1 - Médico | B31: 1.1 | C31: 1.1.1.1. Médicos | F31: ='[1]TCE - ANEXO II - Preencher'!X1 -> 0 | H31: Informação retirada do Anexo II - Preencher
A32: 2 - Outros Profissionais da Saúde | B32: 1.1 | C32: 1.1.1.2. Outros profissionais de saúde | F32: ='[1]TCE - ANEXO II - Preencher'!X2 -> 0 | H32: Informação retirada do Anexo II - Preencher
A33: 4 - Assistência Odontológica | B33: 1.1 | C33: 1.1.2. Assistência Odontológica | F33: ='[1]TCE - ANEXO II - Preencher'!X4 -> 0 | H33: Informação retirada do Anexo II - Preencher
A34: 3 - Administrativo | B34: 1.1 | C34: 1.1.3. Administrativo | F34: ='[1]TCE - ANEXO II - Preencher'!X3 -> 0 | H34: Informação retirada do Anexo II - Preencher
A35: 2 - FGTS | B35: 1.2 | C35: 1.2. FGTS | F35: ='[1]MEM.CÁLC.FP.'!$D$92 -> 0 | H35: Informação retirada da MEM.CÁLC.FP.
A36: 1 - PIS | B36: 1.2 | C36: 1.3. PIS | F36: =IF(G6="SIM","",'[1]MEM.CÁLC.FP.'!$D$93) ->  | H36: Informação retirada da MEM.CÁLC.FP.
A37: 1.99 - Outras Depesas com Pessoal | B37: 1.99 | C37: 1.4. Benefícios | F37: ='[1]MEM.CÁLC.FP.'!$C$96 -> 0 | H37: Informação retirada da MEM.CÁLC.FP.
C38: 1.5. Despesas com Provisões (Férias + 13º + Rescisões) | F38: =F39+F43+F47 -> 0
C39: 1.5.1. Total Férias | F39: =SUM(F40:G42) -> 0
C40: 1.5.1.2. Proventos Férias | F40: =SUM('[1]MEM.CÁLC.FP.'!D6:D7) -> 0 | H40: Informação retirada da MEM.CÁLC.FP.
A41: 2 - FGTS | B41: 1.2 | C41: 1.5.1.2. FGTS s/ Férias | F41: =SUM('[1]MEM.CÁLC.FP.'!F6:F7) -> 0 | H41: Informação retirada da MEM.CÁLC.FP.
A42: 1 - PIS | B42: 1.2 | C42: 1.5.1.3. PIS s/ Férias | F42: =IF(G6="SIM","",SUM('[1]MEM.CÁLC.FP.'!G6:G7)) ->  | H42: Informação retirada da MEM.CÁLC.FP.
C43: 1.5.2. Total 13º Salário | F43: =SUM(F44:G46) -> 0
C44: 1.5.2.1. Proventos 13º Salário | F44: =SUM('[1]MEM.CÁLC.FP.'!D9:D10) -> 0 | H44: Informação retirada da MEM.CÁLC.FP.
A45: 2 - FGTS | B45: 1.2 | C45: 1.5.2.2. FGTS s/ 13º Salário | F45: =SUM('[1]MEM.CÁLC.FP.'!F9:F10) -> 0 | H45: Informação retirada da MEM.CÁLC.FP.
A46: 1 - PIS | B46: 1.2 | C46: 1.5.2.3. PIS s/ 13º Salário | F46: =IF(G6="SIM","",SUM('[1]MEM.CÁLC.FP.'!G9:G10)) ->  | H46: Informação retirada da MEM.CÁLC.FP.
C47: 1.5.3. Rescisões | F47: =SUM(F48:G51) -> 0
C48: 1.5.3.1. Proventos Rescisões | F48: ='[1]MEM.CÁLC.FP.'!D12+'[1]MEM.CÁLC.FP.'!D14-'[1]MEM.CÁLC.FP.'!D13-'[1]MEM.CÁLC.FP.'!D15 -> 0 | H48: Informação retirada da MEM.CÁLC.FP.
A49: 2 - FGTS | B49: 1.2 | C49: 1.5.3.2. FGTS s/ Rescisões | F49: =SUM('[1]MEM.CÁLC.FP.'!F12:F15) -> 0 | H49: Informação retirada da MEM.CÁLC.FP.
A50: 1 - PIS | B50: 1.2 | C50: 1.5.3.3. PIS s/ Rescisões | F50: =IF(G6="SIM","",SUM('[1]MEM.CÁLC.FP.'!G12:G15)) ->  | H50: Informação retirada da MEM.CÁLC.FP.
A51: 2 - FGTS | B51: 1.2 | C51: 1.5.3.4. GRFF s/ Rescisões | F51: =SUM('[1]MEM.CÁLC.FP.'!H12:H15) -> 0 | H51: Informação retirada da MEM.CÁLC.FP.
C52: 2. Insumos Assistenciais | F52: =SUM(F53:G60) -> 0
A53: 2.1. Materiais Descartáveis/Materiais de Penso | B53: 3.12 | C53: 2.1. Materiais Descartáveis/Materiais de Penso | H53: Informação retirada da memória de cálculo do estoque
A54: 2.2. Medicamentos | B54: 3.4 | C54: 2.2. Medicamentos | H54: Informação retirada da memória de cálculo do estoque
A55: 2.3. Dietas Industrializadas | B55: 3.3 | C55: 2.3. Dietas Industrializadas | H55: Informação retirada da memória de cálculo do estoque
A56: 2.4. Gases Medicinais | B56: 3.2 | C56: 2.4. Gases Medicinais | H56: Informação retirada da memória de cálculo do estoque
A57: 2.5. OPME (Orteses, Próteses e Materiais Especiais) | B57: 3.13 | C57: 2.5. OPME (Orteses, Próteses e Materiais Especiais) | H57: Informação retirada da memória de cálculo do estoque
A58: 2.6. Material de uso odontológico | B58: 3.5 | C58: 2.6. Material de uso odontológico | H58: Informação retirada da memória de cálculo do estoque
A59: 2.7. Material laboratorial | B59: 3.11 | C59: 2.7. Material laboratorial | H59: Informação retirada da memória de cálculo do estoque
A60: 2.8. Outras Despesas com Insumos Assistenciais | B60: 3.99 | C60: 2.8. Outras Despesas com Insumos Assistenciais | H60: Informação retirada da memória de cálculo do estoque
C61: 3. Materiais/Consumos Diversos | F61: =SUM(F62:G66)+F67+F76+F77 -> 0
A62: 3.1. Material de Higienização e Limpeza | B62: 3.7 | C62: 3.1. Material de Higienização e Limpeza | H62: Informação retirada da memória de cálculo do estoque
A63: 3.2. Material/Gêneros Alimentícios | B63: 3.3 | C63: 3.2. Material/Gêneros Alimentícios | H63: Informação retirada da memória de cálculo do estoque
A64: 3.3. Material Expediente | B64: 3.6 | C64: 3.3. Material Expediente | H64: Informação retirada da memória de cálculo do estoque
A65: 3.4. Combustível | B65: 3.1 | C65: 3.4. Combustível | H65: Informação retirada da memória de cálculo do estoque
A66: 3.5. GLP | B66: 3.2 | C66: 3.5. GLP | H66: Informação retirada da memória de cálculo do estoque
C67: 3.6. Material de Manutenção | F67: =F68+F69 -> 0
A68: 3.6.1. Manutenção de Bem Imóvel | B68: 3.9 | C68: 3.6.1. Manutenção de Bem Imóvel | H68: Informação retirada da memória de cálculo do estoque
C69: 3.6.2. Manutenção de Bem Móvel | F69: =F70+F71+F74+F75 -> 0
A70: 3.6.2.1. Equipamentos de Informática | B70: 3.10 | C70: 3.6.2.1. Suprimentos de Informática | H70: Informação retirada da memória de cálculo do estoque
C71: 3.6.2.2. Manutenção de Veículos | F71: =SUM(F72:G73) -> 0
A72: 3.6.2.2.1. Lubrificantes Veiculares | B72: 3.1 | C72: 3.6.2.2.1. Lubrificantes Veiculares | H72: Informação retirada da memória de cálculo do estoque
A73: 3.6.2.2.2. Outros Materiais de Manutenção de Veículos | B73: 3.10 | C73: 3.6.2.2.2. Outros Materiais de Manutenção de Veículos | H73: Informação retirada da memória de cálculo do estoque
A74: 3.6.2.3. Equipamento Médico-Hospitalar | B74: 3.10 | C74: 3.6.2.3. Equipamento Médico-Hospitalar | H74: Informação retirada da memória de cálculo do estoque
A75: 3.6.2.4. Outros materiais de Manutenção de Bem Móvel | B75: 3.99 | C75: 3.6.2.4. Outros Materiais de Manutenção de Bem Móvel | H75: Informação retirada da memória de cálculo do estoque
A76: 3.7. Tecidos, Fardamentos e EPI | B76: 3.8 | C76: 3.7. Tecidos, Fardamentos e EPI | H76: Informação retirada da memória de cálculo do estoque
A77: 3.8. Outras Despesas com Materiais Diversos | B77: 3.99 | C77: 3.8. Outras Despesas com Materiais Diversos | H77: Informação retirada da memória de cálculo do estoque
C78: 4. Seguros/Tributos/Despesas Bancárias | F78: =F79+F80+F83 -> 93.45
A79: 4.1. Seguros (Imóvel e veículos) | B79: 5.21 | C79: 4.1. Seguros (Imóvel e veículos) | F79: =SUMIF('[1]TCE - ANEXO IV - Preencher'!$D:$D,'CONTÁBIL- FINANCEIRA '!A79,'[1]TCE - ANEXO IV - Preencher'!$N:$N) -> 0 | H79: Informação retirada do Anexo IV - Preencher
C80: 4.2. Tributos (Taxas e Contribuições) | F80: =F81+F82 -> 0
A81: 4.2.1. Taxas | B81: 5.99 | C81: 4.2.1. Taxas | F81: =SUMIF('[1]TCE - ANEXO IV - Preencher'!$D:$D,'CONTÁBIL- FINANCEIRA '!A81,'[1]TCE - ANEXO IV - Preencher'!$N:$N) -> 0 | H81: Informação retirada do Anexo IV - Preencher
A82: 4.2.2. Contribuições | B82: 5.99 | C82: 4.2.2. Contribuições | F82: =SUMIF('[1]TCE - ANEXO IV - Preencher'!$D:$D,'CONTÁBIL- FINANCEIRA '!A82,'[1]TCE - ANEXO IV - Preencher'!$N:$N) -> 0 | H82: Informação retirada do Anexo IV - Preencher
C83: 4.3. Despesas Bancárias (Taxa de Manutenção/Tarifas) | F83: =F84+F85 -> 93.45
A84: 4.3.1. Taxa de Manutenção de Conta | B84: 5.25 | C84: 4.3.1. Taxa de Manutenção de Conta | F84: =SUMIF('[1]TCE - ANEXO IV - Preencher'!$D:$D,'CONTÁBIL- FINANCEIRA '!A84,'[1]TCE - ANEXO IV - Preencher'!$N:$N) -> 93.45 | H84: Informação retirada do Anexo IV - Preencher
A85: 4.3.2. Tarifas | B85: 5.25 | C85: 4.3.2. Tarifas | F85: =SUMIF('[1]TCE - ANEXO IV - Preencher'!$D:$D,'CONTÁBIL- FINANCEIRA '!A85,'[1]TCE - ANEXO IV - Preencher'!$N:$N) -> 0 | H85: Informação retirada do Anexo IV - Preencher
D87: _____________________________________ | E87: ______/______/_______ | F87: _____________________________________
D88: RECEBIMENTO SES/SEAS/DGMMAS (DATA e ASSINATURA) | E88: DATA | F88: ASSINATURA RESPONSÁVEL PELA UNIDADE
D89: =D1 -> GOVERNO DO ESTADO DE PERNAMBUCO | F89: =F1 -> Janeiro/2020 - Versão 4.0
D90: =D2 -> SECRETARIA DE SAÚDE DO ESTADO DE PERNAMBUCO | F90: =F2 -> MÊS/ANO COMPETÊNCIA | G90: =G2 -> ANO CONTRATO
D91: =D3 -> SECRETARIA EXECUTIVA DE ATENÇÃO À SAÚDE
D92: =D4 -> DIR. GERAL DE MODERNIZAÇÃO E MONITORAMENTO DA ASSISTÊNCIA À SAÚDE | F92: =$F$4 -> FEVEREIRO 2021 | G92: =IF(G4=0,"",G4) -> 1
D93: =D5 -> DEMONSTRATIVO DE RESULTADO CONTÁBIL - FINANCEIRO MENSAL
C94: UNIDADE | E94: RESPONSÁVEL PELA UNIDADE
C95: =IF(C7=0,"",C7) -> HOSPITAL PROVISÓRIO RECIFE II/ UNIDADE - COELHOS | E95: =IF(E7=0,"",E7) -> FERNANDO FIGUEIRA
C96: DESPESAS OPERACIONAIS (continuação) | F96: VALOR
C97: 5. Gerais | F97: =F98+F101+F102+F103+F110+F108+F109 -> 43951.48
C98: 5.1. Telefonia/Internet | F98: =SUM(F99:G100) -> 0
A99: 5.1.1. Telefonia Móvel | B99: 5.9 | C99: 5.1.1. Telefonia Móvel | F99: =SUMIF('[1]TCE - ANEXO IV - Preencher'!$D:$D,'CONTÁBIL- FINANCEIRA '!A99,'[1]TCE - ANEXO IV - Preencher'!$N:$N) -> 0 | H99: Informação retirada do Anexo IV - Preencher
A100: 5.1.2. Telefonia Fixa/Internet | B100: 5.18 | C100: 5.1.2. Telefonia Fixa/Internet | F100: =SUMIF('[1]TCE - ANEXO IV - Preencher'!$D:$D,'CONTÁBIL- FINANCEIRA '!A100,'[1]TCE - ANEXO IV - Preencher'!$N:$N) -> 0 | H100: Informação retirada do Anexo IV - Preencher
A101: 5.2. Água | B101: 5.13 | C101: 5.2. Água | F101: =SUMIF('[1]TCE - ANEXO IV - Preencher'!$D:$D,'CONTÁBIL- FINANCEIRA '!A101,'[1]TCE - ANEXO IV - Preencher'!$N:$N) -> 0 | H101: Informação retirada do Anexo IV - Preencher
A102: 5.3. Energia Elétrica | B102: 5.12 | C102: 5.3. Energia Elétrica | F102: =SUMIF('[1]TCE - ANEXO IV - Preencher'!$D:$D,'CONTÁBIL- FINANCEIRA '!A102,'[1]TCE - ANEXO IV - Preencher'!$N:$N) -> 0 | H102: Informação retirada do Anexo IV - Preencher
C103: 5.4. Alugueis/Locações | F103: =F104+F105+F106+F107 -> 0
A104: 5.4.1. Locação de Imóvel (Pessoa Física) | B104: 4.2 | C104: 5.4.1. Locação de Imóvel (Pessoa Física) | F104: =SUMIF('[1]TCE - ANEXO IV - Preencher'!$D:$D,'CONTÁBIL- FINANCEIRA '!A104,'[1]TCE - ANEXO IV - Preencher'!$N:$N) -> 0 | H104: Informação retirada do Anexo IV - Preencher
A105: 5.4.2. Locação de Máquinas e Equipamentos (Pessoa Jurídica) | B105: 5.3 | C105: 5.4.2. Locação de Máquinas e Equipamentos (Pessoa Jurídica) | F105: =SUMIF('[1]TCE - ANEXO IV - Preencher'!$D:$D,'CONTÁBIL- FINANCEIRA '!A105,'[1]TCE - ANEXO IV - Preencher'!$N:$N) -> 0 | H105: Informação retirada do Anexo IV - Preencher
A106: 5.4.3. Locação de Equipamentos Médico-Hospitalares (Pessoa Jurídica) | B106: 5.1 | C106: 5.4.3. Locação de Equipamentos Médico-Hospitalares (Pessoa Jurídica) | F106: =SUMIF('[1]TCE - ANEXO IV - Preencher'!$D:$D,'CONTÁBIL- FINANCEIRA '!A106,'[1]TCE - ANEXO IV - Preencher'!$N:$N) -> 0 | H106: Informação retirada do Anexo IV - Preencher
A107: 5.4.4. Locação de Veículos Automotores (Pessoa Jurídica) (Exceto Ambulância) | B107: 5.8 | C107: 5.4.4. Locação de Veículos Automotores (Pessoa Jurídica) (Exceto Ambulância) | F107: =SUMIF('[1]TCE - ANEXO IV - Preencher'!$D:$D,'CONTÁBIL- FINANCEIRA '!A107,'[1]TCE - ANEXO IV - Preencher'!$N:$N) -> 0 | H107: Informação retirada do Anexo IV - Preencher
A108: 5.5. Serviço Gráficos, de Encadernação e de Emolduração | B108: 5.19 | C108: 5.5. Serviço Gráficos, de Encadernação e de Emolduração | F108: =SUMIF('[1]TCE - ANEXO IV - Preencher'!$D:$D,'CONTÁBIL- FINANCEIRA '!A108,'[1]TCE - ANEXO IV - Preencher'!$N:$N) -> 0 | H108: Informação retirada do Anexo IV - Preencher
A109: 5.6. Serviços Judiciais e Cartoriais | B109: 5.20 | C109: 5.6. Serviços Judiciais e Cartoriais | F109: =SUMIF('[1]TCE - ANEXO IV - Preencher'!$D:$D,'CONTÁBIL- FINANCEIRA '!A109,'[1]TCE - ANEXO IV - Preencher'!$N:$N) -> 43951.48 | H109: Informação retirada do Anexo IV - Preencher
C110: 5.7. Outras Despesas Gerais | F110: =F111+F112 -> 0
A111: 5.7.1. Outras Despesas Gerais (Pessoa Física) | B111: 4.99 | C111: 5.7.1. Outras Despesas Gerais (Pessoa Física) | F111: =SUMIF('[1]TCE - ANEXO IV - Preencher'!$D:$D,'CONTÁBIL- FINANCEIRA '!A111,'[1]TCE - ANEXO IV - Preencher'!$N:$N) -> 0 | H111: Informação retirada do Anexo IV - Preencher
A112: 5.7.2. Outras Despesas Gerais (Pessoa Juridica) | B112: 5.99 | C112: 5.7.2. Outras Despesas Gerais (Pessoa Juridica) | F112: =SUMIF('[1]TCE - ANEXO IV - Preencher'!$D:$D,'CONTÁBIL- FINANCEIRA '!A112,'[1]TCE - ANEXO IV - Preencher'!$N:$N) -> 0 | H112: Informação retirada do Anexo IV - Preencher
C113: 6. Serviços Terceirizados/Contratos de Prestação de Serviços | F113: =F114+F129+F133 -> 0
C114: 6.1. Assistência Médica | F114: =F115+F122+F126 -> 0
C115: 6.1.1. Pessoa Jurídica | F115: =SUM(F116:G121) -> 0
A116: 6.1.1.1. Médicos | B116: 5.16 | C116: 6.1.1.1. Médicos | F116: =SUMIF('[1]TCE - ANEXO IV - Preencher'!$D:$D,'CONTÁBIL- FINANCEIRA '!A116,'[1]TCE - ANEXO IV - Preencher'!$N:$N) -> 0 | H116: Informação retirada do Anexo IV - Preencher
A117: 6.1.1.2. Outros profissionais de saúde | B117: 5.2 | C117: 6.1.1.2. Outros profissionais de saúde | F117: =SUMIF('[1]TCE - ANEXO IV - Preencher'!$D:$D,'CONTÁBIL- FINANCEIRA '!A117,'[1]TCE - ANEXO IV - Preencher'!$N:$N) -> 0 | H117: Informação retirada do Anexo IV - Preencher
A118: 6.1.1.3. Laboratório | B118: 5.16 | C118: 6.1.1.3. Laboratório | F118: =SUMIF('[1]TCE - ANEXO IV - Preencher'!$D:$D,'CONTÁBIL- FINANCEIRA '!A118,'[1]TCE - ANEXO IV - Preencher'!$N:$N) -> 0 | H118: Informação retirada do Anexo IV - Preencher
A119: 6.1.1.4. Alimentação/Dietas | B119: 5.11 | C119: 6.1.1.4. Alimentação/Dietas | F119: =SUMIF('[1]TCE - ANEXO IV - Preencher'!$D:$D,'CONTÁBIL- FINANCEIRA '!A119,'[1]TCE - ANEXO IV - Preencher'!$N:$N) -> 0 | H119: Informação retirada do Anexo IV - Preencher
A120: 6.1.1.5. Locação de Ambulâncias | B120: 5.8 | C120: 6.1.1.5. Locação de Ambulâncias | F120: =SUMIF('[1]TCE - ANEXO IV - Preencher'!$D:$D,'CONTÁBIL- FINANCEIRA '!A120,'[1]TCE - ANEXO IV - Preencher'!$N:$N) -> 0 | H120: Informação retirada do Anexo IV - Preencher
A121: 6.1.1.6. Outras Pessoas Jurídicas | B121: 5.99 | C121: 6.1.1.6. Outras Pessoas Jurídicas | F121: =SUMIF('[1]TCE - ANEXO IV - Preencher'!$D:$D,'CONTÁBIL- FINANCEIRA '!A121,'[1]TCE - ANEXO IV - Preencher'!$N:$N) -> 0 | H121: Informação retirada do Anexo IV - Preencher
C122: 6.1.2. Pessoa Física | F122: =SUM(F123:G125) -> 0
A123: 6.1.2.1. Médicos | B123: 4.6 | C123: 6.1.2.1. Médicos | F123: =[1]RPA!K2 -> 0 | H123: Informação retirada do RPA
A124: 6.1.2.2. Outros profissionais de saúde | B124: 4.1 | C124: 6.1.2.2. Outros profissionais de saúde | F124: =[1]RPA!K3 -> 0 | H124: Informação retirada do RPA
A125: 6.1.2.3. Farmacêutico | B125: 4.6 | C125: 6.1.2.3. Farmacêutico | F125: =[1]RPA!K4 -> 0 | H125: Informação retirada do RPA
C126: 6.1.3. Cooperativas | F126: =F127+F128 -> 0
A127: 6.1.3.1. Médicos | B127: 5.16 | C127: 6.1.3.1. Médicos | F127: =SUMIF('[1]TCE - ANEXO IV - Preencher'!$D:$D,'CONTÁBIL- FINANCEIRA '!A127,'[1]TCE - ANEXO IV - Preencher'!$N:$N) -> 0 | H127: Informação retirada do Anexo IV - Preencher
A128: 6.1.3.2. Outros profissionais de saúde | B128: 5.16 | C128: 6.1.3.2. Outros profissionais de saúde | F128: =SUMIF('[1]TCE - ANEXO IV - Preencher'!$D:$D,'CONTÁBIL- FINANCEIRA '!A128,'[1]TCE - ANEXO IV - Preencher'!$N:$N) -> 0 | H128: Informação retirada do Anexo IV - Preencher
C129: 6.2. Assistência Odontológica | F129: =SUM(F130:F132) -> 0
A130: 6.2.1. Pessoa Jurídica | B130: 5.16 | C130: 6.2.1. Pessoa Jurídica | F130: =SUMIF('[1]TCE - ANEXO IV - Preencher'!$D:$D,'CONTÁBIL- FINANCEIRA '!A130,'[1]TCE - ANEXO IV - Preencher'!$N:$N) -> 0 | H130: Informação retirada do Anexo IV - Preencher
A131: 6.2.2. Pessoa Física | B131: 4.6 | C131: 6.2.2. Pessoa Física | F131: =[1]RPA!K5 -> 0 | H131: Informação retirada do RPA
A132: 6.2.3. Cooperativas | B132: 5.16 | C132: 6.2.3. Cooperativas | F132: =SUMIF('[1]TCE - ANEXO IV - Preencher'!$D:$D,'CONTÁBIL- FINANCEIRA '!A132,'[1]TCE - ANEXO IV - Preencher'!$N:$N) -> 0 | H132: Informação retirada do Anexo IV - Preencher
C133: 6.3. Administrativos | F133: =F134+F147 -> 0
C134: 6.3.1. Pessoa Jurídica | F134: =F135+SUM(F139:F146) -> 0
C135: 6.3.1.1. Serviços Domésticos | F135: =F136+F137+F138 -> 0
A136: 6.3.1.1.1. Lavanderia | B136: 5.15 | C136: 6.3.1.1.1. Lavanderia | F136: =SUMIF('[1]TCE - ANEXO IV - Preencher'!$D:$D,'CONTÁBIL- FINANCEIRA '!A136,'[1]TCE - ANEXO IV - Preencher'!$N:$N) -> 0 | H136: Informação retirada do Anexo IV - Preencher
A137: 6.3.1.1.2.Serviços de Cozinha e Copeira | B137: 5.15 | C137: 6.3.1.1.2. Serviços de Cozinha e Copeira | F137: =SUMIF('[1]TCE - ANEXO IV - Preencher'!$D:$D,'CONTÁBIL- FINANCEIRA '!A137,'[1]TCE - ANEXO IV - Preencher'!$N:$N) -> 0 | H137: Informação retirada do Anexo IV - Preencher
A138: 6.3.1.1.3. Outros Serviços Domésticos | B138: 5.15 | C138: 6.3.1.1.3. Outros Serviços Domésticos | F138: =SUMIF('[1]TCE - ANEXO IV - Preencher'!$D:$D,'CONTÁBIL- FINANCEIRA '!A138,'[1]TCE - ANEXO IV - Preencher'!$N:$N) -> 0 | H138: Informação retirada do Anexo IV - Preencher
A139: 6.3.1.2. Coleta de Lixo Hospitalar | B139: 5.10 | C139: 6.3.1.2. Coleta de Lixo Hospitalar | F139: =SUMIF('[1]TCE - ANEXO IV - Preencher'!$D:$D,'CONTÁBIL- FINANCEIRA '!A139,'[1]TCE - ANEXO IV - Preencher'!$N:$N) -> 0 | H139: Informação retirada do Anexo IV - Preencher
A140: 6.3.1.3. Manutenção/Aluguel/Uso de Sistemas ou Softwares | B140: 5.17 | C140: 6.3.1.3. Manutenção/Aluguel/Uso de Sistemas ou Softwares | F140: =SUMIF('[1]TCE - ANEXO IV - Preencher'!$D:$D,'CONTÁBIL- FINANCEIRA '!A140,'[1]TCE - ANEXO IV - Preencher'!$N:$N) -> 0 | H140: Informação retirada do Anexo IV - Preencher
A141: 6.3.1.4. Vigilância | B141: 5.22 | C141: 6.3.1.4. Vigilância | F141: =SUMIF('[1]TCE - ANEXO IV - Preencher'!$D:$D,'CONTÁBIL- FINANCEIRA '!A141,'[1]TCE - ANEXO IV - Preencher'!$N:$N) -> 0 | H141: Informação retirada do Anexo IV - Preencher
A142: 6.3.1.5. Consultorias e Treinamentos | B142: 5.99 | C142: 6.3.1.5. Consultorias e Treinamentos | F142: =SUMIF('[1]TCE - ANEXO IV - Preencher'!$D:$D,'CONTÁBIL- FINANCEIRA '!A142,'[1]TCE - ANEXO IV - Preencher'!$N:$N) -> 0 | H142: Informação retirada do Anexo IV - Preencher
A143: 6.3.1.6. Serviços Técnicos Profissionais | B143: 5.2 | C143: 6.3.1.6. Serviços Técnicos Profissionais | F143: =SUMIF('[1]TCE - ANEXO IV - Preencher'!$D:$D,'CONTÁBIL- FINANCEIRA '!A143,'[1]TCE - ANEXO IV - Preencher'!$N:$N) -> 0 | H143: Informação retirada do Anexo IV - Preencher
A144: 6.3.1.7. Dedetização | B144: 5.10 | C144: 6.3.1.7. Dedetização | F144: =SUMIF('[1]TCE - ANEXO IV - Preencher'!$D:$D,'CONTÁBIL- FINANCEIRA '!A144,'[1]TCE - ANEXO IV - Preencher'!$N:$N) -> 0 | H144: Informação retirada do Anexo IV - Preencher
A145: 6.3.1.8. Limpeza | B145: 5.23 | C145: 6.3.1.8. Limpeza | F145: =SUMIF('[1]TCE - ANEXO IV - Preencher'!$D:$D,'CONTÁBIL- FINANCEIRA '!A145,'[1]TCE - ANEXO IV - Preencher'!$N:$N) -> 0 | H145: Informação retirada do Anexo IV - Preencher
A146: 6.3.1.9. Outras Pessoas Jurídicas | B146: 5.99 | C146: 6.3.1.9. Outras Pessoas Jurídicas | F146: =SUMIF('[1]TCE - ANEXO IV - Preencher'!$D:$D,'CONTÁBIL- FINANCEIRA '!A146,'[1]TCE - ANEXO IV - Preencher'!$N:$N) -> 0 | H146: Informação retirada do Anexo IV - Preencher
C147: 6.3.2. Pessoa Física | F147: =SUM(F148:G150) -> 0
A148: 6.3.2.1. Técnico Profissional (Nível Superior) | B148: 4.1 | C148: 6.3.2.1. Técnico Profissional (Nível Superior) | F148: =[1]RPA!K6 -> 0 | H148: Informação retirada do RPA
A149: 6.3.2.2. Tecnico Operacional (Nível Médio / Elementar) | B149: 4.7 | C149: 6.3.2.2. Apoio Administrativo, Técnico e Operacional | F149: =[1]RPA!K7 -> 0 | H149: Informação retirada do RPA
A150: 6.3.2.3. Outros Serviços | B150: 4.99 | C150: 6.3.2.3. Outros Serviços | F150: =[1]RPA!K8 -> 0 | H150: Informação retirada do RPA
C151: 7. Manutenção | F151: =F152+F159 -> 0
C152: 7.1 Manutenção (Pessoa Física) | F152: =F153+F157+F158 -> 0
C153: 7.1.1. Reparo e Manutenção de Equipamentos | F153: =SUM(F154:G156) -> 0
A154: 7.1.1.1. Equipamentos Médico-Hospitalar | B154: 4.3 | C154: 7.1.1.1. Equipamentos Médico-Hospitalar | F154: =SUMIF('[1]TCE - ANEXO IV - Preencher'!$D:$D,'CONTÁBIL- FINANCEIRA '!A154,'[1]TCE - ANEXO IV - Preencher'!$N:$N) -> 0 | H154: Informação retirada do Anexo IV - Preencher
A155: 7.1.1.2. Equipamentos de Informática | B155: 4.3 | C155: 7.1.1.2. Equipamentos de Informática | F155: =SUMIF('[1]TCE - ANEXO IV - Preencher'!$D:$D,'CONTÁBIL- FINANCEIRA '!A155,'[1]TCE - ANEXO IV - Preencher'!$N:$N) -> 0 | H155: Informação retirada do Anexo IV - Preencher
A156: 7.1.1.3. Outros Reparos e Manutenção de Equipamentos | B156: 4.3 | C156: 7.1.1.3. Outros Reparos e Manutenção de Equipamentos | F156: =SUMIF('[1]TCE - ANEXO IV - Preencher'!$D:$D,'CONTÁBIL- FINANCEIRA '!A156,'[1]TCE - ANEXO IV - Preencher'!$N:$N) -> 0 | H156: Informação retirada do Anexo IV - Preencher
A157: 7.1.2. Reparo e Manutenção de Bens Móveis de Outras Naturezas | B157: 4.4 | C157: 7.1.2. Reparo e Manutenção de Bens Móveis de Outras Naturezas | F157: =SUMIF('[1]TCE - ANEXO IV - Preencher'!$D:$D,'CONTÁBIL- FINANCEIRA '!A157,'[1]TCE - ANEXO IV - Preencher'!$N:$N) -> 0 | H157: Informação retirada do Anexo IV - Preencher
A158: 7.1.3. Reparo e Manutenção de Bens Imóveis | B158: 4.5 | C158: 7.1.3. Reparo e Manutenção de Bens Imóveis | F158: =SUMIF('[1]TCE - ANEXO IV - Preencher'!$D:$D,'CONTÁBIL- FINANCEIRA '!A158,'[1]TCE - ANEXO IV - Preencher'!$N:$N) -> 0 | H158: Informação retirada do Anexo IV - Preencher
C159: 7.2 Manutenção (Pessoa Jurídica) | F159: =F160+F165+F166+F167 -> 0
C160: 7.2.1. Reparo e Manutenção de Máquinas e Equipamentos | F160: =SUM(F161:G164) -> 0
A161: 7.2.1.1. Equipamentos Médico-Hospitalar | B161: 5.5 | C161: 7.2.1.1. Equipamentos Médico-Hospitalar | F161: =SUMIF('[1]TCE - ANEXO IV - Preencher'!$D:$D,'CONTÁBIL- FINANCEIRA '!A161,'[1]TCE - ANEXO IV - Preencher'!$N:$N) -> 0 | H161: Informação retirada do Anexo IV - Preencher
A162: 7.2.1.2. Equipamentos de Informática | B162: 5.5 | C162: 7.2.1.2. Equipamentos de Informática | F162: =SUMIF('[1]TCE - ANEXO IV - Preencher'!$D:$D,'CONTÁBIL- FINANCEIRA '!A162,'[1]TCE - ANEXO IV - Preencher'!$N:$N) -> 0 | H162: Informação retirada do Anexo IV - Preencher
A163: 7.2.1.3. Engenharia Clínica | B163: 5.5 | C163: 7.2.1.3. Engenharia Clínica | F163: =SUMIF('[1]TCE - ANEXO IV - Preencher'!$D:$D,'CONTÁBIL- FINANCEIRA '!A163,'[1]TCE - ANEXO IV - Preencher'!$N:$N) -> 0 | H163: Informação retirada do Anexo IV - Preencher
A164: 7.2.1.4. Outros Reparos e Manutenção de Máquinas e Equipamentos | B164: 5.5 | C164: 7.2.1.4. Outros Reparos e Manutenção de Máquinas e Equipamentos | F164: =SUMIF('[1]TCE - ANEXO IV - Preencher'!$D:$D,'CONTÁBIL- FINANCEIRA '!A164,'[1]TCE - ANEXO IV - Preencher'!$N:$N) -> 0 | H164: Informação retirada do Anexo IV - Preencher
A165: 7.2.2. Reparo e Manutenção de Bens Imóveis | B165: 5.4 | C165: 7.2.2. Reparo e Manutenção de Bens Imóveis | F165: =SUMIF('[1]TCE - ANEXO IV - Preencher'!$D:$D,'CONTÁBIL- FINANCEIRA '!A165,'[1]TCE - ANEXO IV - Preencher'!$N:$N) -> 0 | H165: Informação retirada do Anexo IV - Preencher
A166: 7.2.3. Reparo e Manutenção de Veículos | B166: 5.6 | C166: 7.2.3. Reparo e Manutenção de Veículos | F166: =SUMIF('[1]TCE - ANEXO IV - Preencher'!$D:$D,'CONTÁBIL- FINANCEIRA '!A166,'[1]TCE - ANEXO IV - Preencher'!$N:$N) -> 0 | H166: Informação retirada do Anexo IV - Preencher
A167: 7.2.4. Reparo e Manutenção de Bens Móveis de Outras Naturezas | B167: 5.7 | C167: 7.2.4. Reparo e Manutenção de Bens Móveis de Outras Naturezas | F167: =SUMIF('[1]TCE - ANEXO IV - Preencher'!$D:$D,'CONTÁBIL- FINANCEIRA '!A167,'[1]TCE - ANEXO IV - Preencher'!$N:$N) -> 0 | H167: Informação retirada do Anexo IV - Preencher
C168: 8. Investimentos autorizados pela SES | F168: =SUM(F169:G172) -> 0
A169: 8.1. Equipamentos | B169: 6 | C169: 8.1. Equipamentos | F169: =SUMIF('[1]TCE - ANEXO IV - Preencher'!$D:$D,'CONTÁBIL- FINANCEIRA '!A169,'[1]TCE - ANEXO IV - Preencher'!$N:$N) -> 0 | H169: Informação retirada do Anexo IV - Preencher
A170: 8.2. Móveis e Utensílios | B170: 6 | C170: 8.2. Móveis e Utensílios | F170: =SUMIF('[1]TCE - ANEXO IV - Preencher'!$D:$D,'CONTÁBIL- FINANCEIRA '!A170,'[1]TCE - ANEXO IV - Preencher'!$N:$N) -> 0 | H170: Informação retirada do Anexo IV - Preencher
A171: 8.3. Obras e Construções | B171: 7 | C171: 8.3. Obras e Construções | F171: =SUMIF('[1]TCE - ANEXO IV - Preencher'!$D:$D,'CONTÁBIL- FINANCEIRA '!A171,'[1]TCE - ANEXO IV - Preencher'!$N:$N) -> 0 | H171: Informação retirada do Anexo IV - Preencher
A172: 8.4. Outras despesas Investimentos | B172: 6 | C172: 8.4. Outras despesas Investimentos | F172: =SUMIF('[1]TCE - ANEXO IV - Preencher'!$D:$D,'CONTÁBIL- FINANCEIRA '!A172,'[1]TCE - ANEXO IV - Preencher'!$N:$N) -> 0 | H172: Informação retirada do Anexo IV - Preencher
C173: 9. Despesas com Plano de Investimento Autorizado pela SES | F173: =F14+F19 -> 0
A174: 10. Despesas com Ensino e Pesquisa | C174: 10. Despesas com Ensino e Pesquisa | F174: =F283 -> 0
A175: 11. Despesa(s) de Competência(s) Anterior(es) | C175: 11. Despesa(s) de Competência(s) Anterior(es) | F175: ='[1]TCE - ANEXO IV - Preencher'!Q99 -> 0 | H175: Informação retirada do Anexo IV - Preencher
C176: TOTAL DE DESPESAS OPERACIONAIS ANTES DAS PROVISÕES | F176: =F28+F52+F61+F78+F97+F113+F151+F168+F173+F174+F175 -> 44044.93
C177: RESULTADO (DÉFICIT/SUPERÁVIT) ANTES DAS PROVISÕES (1) | F177: =F25-F176 -> -40320.53
C178: SALDO DE PROVISÕES DO MÊS | F178: =IF(AND($G$4=1,$G$6="NÃO"),(8.333+11.111+1.56+0.194+4+9.08)*$F$29/100, IF(AND($G$4=1,$G$6="SIM"),(8.333+11.111+1.56+4+9.08)*$F$29/100, IF(AND($G$4>1,$G$6="NÃO"),(8.333+11.111+1.56+0.194+4+$F$183)*$F$29/100, IF(AND($G$4>1,$G$6="SIM"),(8.333+11.111+1.56+4+$F$183)*$F$29/100, IF(AND($G$4="TAC",$G$6="SIM"),(8.333+11.111+1.56+4+$F$183)*$F$29/100, IF(AND($G$4="TAC",$G$6="NÃO"),(8.333+11.111+1.56+0.194+4+$F$183)*$F$29/100, IF(AND($G$4="11 - LC 425/20",$G$6="NÃO"),(8.333+11.111+1.56+0.194+4+$F$183)*$F$29/100, IF(AND($G$4="11 - LC 425/20",$G$6="SIM"),(8.333+11.111+1.56+4+$F$183)*$F$29/100))))))))-F38 -> 0
C179: TOTAL DE DESPESAS OPERACIONAIS APÓS AS PROVISÕES | F179: =F176+F178 -> 44044.93
C180: RESULTADO (DÉFICIT/SUPERÁVIT) APÓS AS PROVISÕES (2) | F180: =F177-F178 -> -40320.53
C181: DEVOLUÇÃO DE SUPERÁVIT | F181: 0
C182: RESSARCIMENTO DE DÉFICIT | F182: 0
C183: TURNOVER DO MÊS (%) | F183: =[1]Turnover!C16 ->  | H183: Informação retirada do TURNOVER
C184: (1) - O resultado leva em consideração as despesas efetivamente realizadas com férias, 13º e rescições na competência; (2) - O resultado considera apenas o valor provisionado para a competência.
D186: _____________________________________ | E186: ______/______/_______ | F186: _____________________________________
D187: RECEBIMENTO SES/SEAS/DGMMAS (DATA e ASSINATURA) | E187: DATA | F187: ASSINATURA RESPONSÁVEL PELA UNIDADE
D188: =D1 -> GOVERNO DO ESTADO DE PERNAMBUCO | F188: =F1 -> Janeiro/2020 - Versão 4.0
D189: =D2 -> SECRETARIA DE SAÚDE DO ESTADO DE PERNAMBUCO | F189: =F2 -> MÊS/ANO COMPETÊNCIA | G189: =G2 -> ANO CONTRATO
D190: =D3 -> SECRETARIA EXECUTIVA DE ATENÇÃO À SAÚDE
D191: =D4 -> DIR. GERAL DE MODERNIZAÇÃO E MONITORAMENTO DA ASSISTÊNCIA À SAÚDE | F191: =$F$4 -> FEVEREIRO 2021 | G191: =IF(G4=0,"",G4) -> 1
D192: DEMONSTRATIVO DE INFORMAÇÕES FINANCEIRAS COMPLEMENTARES
C193: UNIDADE | E193: RESPONSÁVEL PELA UNIDADE
C194: =IF(C7=0,"",C7) -> HOSPITAL PROVISÓRIO RECIFE II/ UNIDADE - COELHOS | E194: =IF(E7=0,"",E7) -> FERNANDO FIGUEIRA
C195: DISPONIBILIDADE DE RECURSOS
C197: CAIXA
C198: DESCRIÇÃO | F198: VALOR
C199: SALDO INICIAL (1) | F199: ='[2]CONTÁBIL- FINANCEIRA '!$F$209 -> 0 | H199: Deverá ser igual ao saldo final do mês anterior
C200: DÉBITOS (2) | F200: 0
C201: CRÉDITOS (3) | F201: 0
C202: SALDO FINAL (4 = 1-2+3) | F202: =F199-F200+F201 -> 0
C204: CONTA CORRENTE
C205: DESCRIÇÃO | F205: VALOR
... 70 more rows
